[Event "Titled Tuesday Blitz November 14 Late 2023"]
[White "Lock, Gavin R"]
[Black "Leenhouts, Koen"]
[WhiteFideId "408646"]
[BlackFideId "1008439"]
[WhiteElo "2244"]
[BlackElo "2536"]
[Result "1-0"]
[Round "3"]
[TimeControl "180+1"]
[Date "2023.11.14"]
[WhiteClock "0:00:12"]
[BlackClock "0:00:00"]
[Board "112"]

1. e4 {[%clk 0:03:00]}  Nc6 {[%clk 0:02:54]} 2. Nf3 {[%clk 0:03:01]}  d6 {[%clk 0:02:51]} 3. d4 {[%clk 0:03:01]}  Bg4 {[%clk 0:02:50]} 4. Bb5 {[%clk 0:02:58]}  a6 {[%clk 0:02:45]} 5. Bxc6+ {[%clk 0:02:58]}  bxc6 {[%clk 0:02:45]} 6. Nc3 {[%clk 0:02:57]}  g6 {[%clk 0:02:42]} 7. h3 {[%clk 0:02:55]}  Bxf3 {[%clk 0:02:41]} 8. Qxf3 {[%clk 0:02:56]}  Bg7 {[%clk 0:02:41]} 9. Be3 {[%clk 0:02:57]}  Rb8 {[%clk 0:02:35]} 10. O-O-O {[%clk 0:02:53]}  e6 {[%clk 0:02:29]} 11. h4 {[%clk 0:02:30]}  h6 {[%clk 0:02:26]} 12. g4 {[%clk 0:02:28]}  Ne7 {[%clk 0:02:25]} 13. h5 {[%clk 0:02:00]}  g5 {[%clk 0:02:24]} 14. e5 {[%clk 0:02:00]}  d5 {[%clk 0:02:18]} 15. Na4 {[%clk 0:01:57]}  Rb5 {[%clk 0:02:06]} 16. b3 {[%clk 0:01:55]}  Rf8 {[%clk 0:01:50]} 17. Qe2 {[%clk 0:01:45]}  f6 {[%clk 0:01:42]} 18. f4 {[%clk 0:01:10]}  fxe5 {[%clk 0:01:30]} 19. fxe5 {[%clk 0:01:04]}  Kd7 {[%clk 0:01:04]} 20. Nc5+ {[%clk 0:00:46]}  Rxc5 {[%clk 0:01:02]} 21. dxc5 {[%clk 0:00:47]}  Qb8 {[%clk 0:00:53]} 22. Bd4 {[%clk 0:00:41]}  Rf4 {[%clk 0:00:50]} 23. Rhf1 {[%clk 0:00:37]}  Qf8 {[%clk 0:00:49]} 24. c3 {[%clk 0:00:33]}  Nc8 {[%clk 0:00:45]} 25. Kb2 {[%clk 0:00:32]}  Na7 {[%clk 0:00:43]} 26. a4 {[%clk 0:00:31]}  Nc8 {[%clk 0:00:38]} 27. Qxa6 {[%clk 0:00:25]}  Qe7 {[%clk 0:00:36]} 28. Rxf4 {[%clk 0:00:22]}  gxf4 {[%clk 0:00:36]} 29. Rf1 {[%clk 0:00:23]}  Qg5 {[%clk 0:00:32]} 30. Qe2 {[%clk 0:00:23]}  Na7 {[%clk 0:00:15]} 31. Qf3 {[%clk 0:00:16]}  Bxe5 {[%clk 0:00:13]} 32. Bxe5 {[%clk 0:00:17]}  Qxe5 {[%clk 0:00:12]} 33. Qxf4 {[%clk 0:00:18]}  Qe2+ {[%clk 0:00:12]} 34. Ka3 {[%clk 0:00:18]}  e5 {[%clk 0:00:10]} 35. Qf7+ {[%clk 0:00:16]}  Kc8 {[%clk 0:00:11]} 36. Qf2 {[%clk 0:00:17]}  Qd3 {[%clk 0:00:10]} 37. Qf3 {[%clk 0:00:16]}  Qc2 {[%clk 0:00:08]} 38. g5 {[%clk 0:00:12]}  hxg5 {[%clk 0:00:05]} 39. h6 {[%clk 0:00:13]}  Qh2 {[%clk 0:00:04]} 40. Rh1 {[%clk 0:00:12]}  Qc2 {[%clk 0:00:02]} 41. h7 {[%clk 0:00:12]}  d4 {[%clk 0:00:03]} 42. h8=Q+ {[%clk 0:00:11]}  Kb7 {[%clk 0:00:03]} 43. Qxe5 {[%clk 0:00:11]}  dxc3 {[%clk 0:00:03]} 44. Qfxc3 {[%clk 0:00:11]}  Qg6 {[%clk 0:00:00]} 45. Qb4+ {[%clk 0:00:12]} 1-0


[Site "https://www.chess.com"]

[Event "Titled Tuesday Blitz November 14 Late 2023"]
[White "Pourkashiyan, Atousa"]
[Black "Rodriguez Dominguez, Melissa"]
[WhiteFideId "12502014"]
[BlackFideId "3517560"]
[WhiteElo "2529"]
[BlackElo "2225"]
[Result "1-0"]
[Round "3"]
[TimeControl "180+1"]
[Date "2023.11.14"]
[WhiteClock "0:00:08"]
[BlackClock "0:00:00"]
[Board "114"]

1. e4 {[%clk 0:03:00]}  c5 {[%clk 0:02:58]} 2. Nf3 {[%clk 0:03:00]}  e6 {[%clk 0:02:57]} 3. d4 {[%clk 0:03:00]}  cxd4 {[%clk 0:02:57]} 4. Nxd4 {[%clk 0:03:01]}  Nc6 {[%clk 0:02:58]} 5. Nxc6 {[%clk 0:02:58]}  bxc6 {[%clk 0:02:58]} 6. Bd3 {[%clk 0:02:58]}  d5 {[%clk 0:02:57]} 7. O-O {[%clk 0:02:58]}  Nf6 {[%clk 0:02:16]} 8. Nc3 {[%clk 0:02:48]}  Be7 {[%clk 0:02:11]} 9. Qe2 {[%clk 0:02:38]}  O-O {[%clk 0:02:05]} 10. Bd2 {[%clk 0:02:28]}  c5 {[%clk 0:01:57]} 11. b3 {[%clk 0:01:52]}  Bb7 {[%clk 0:01:26]} 12. Rad1 {[%clk 0:01:44]}  Re8 {[%clk 0:00:29]} 13. e5 {[%clk 0:01:24]}  Nd7 {[%clk 0:00:29]} 14. f4 {[%clk 0:01:12]}  Rc8 {[%clk 0:00:26]} 15. Kh1 {[%clk 0:01:11]}  a6 {[%clk 0:00:23]} 16. Bxa6 {[%clk 0:01:05]}  Bxa6 {[%clk 0:00:20]} 17. Qxa6 {[%clk 0:01:06]}  c4 {[%clk 0:00:18]} 18. Na4 {[%clk 0:00:31]}  Ra8 {[%clk 0:00:18]} 19. Qb7 {[%clk 0:00:27]}  Rb8 {[%clk 0:00:18]} 20. Qa7 {[%clk 0:00:28]}  Ra8 {[%clk 0:00:18]} 21. Qf2 {[%clk 0:00:28]}  Qc7 {[%clk 0:00:17]} 22. Be3 {[%clk 0:00:25]}  Rac8 {[%clk 0:00:14]} 23. Bd4 {[%clk 0:00:17]}  Ra8 {[%clk 0:00:13]} 24. Rd2 {[%clk 0:00:17]}  Reb8 {[%clk 0:00:12]} 25. f5 {[%clk 0:00:17]}  Nxe5 {[%clk 0:00:09]} 26. fxe6 {[%clk 0:00:16]}  f6 {[%clk 0:00:07]} 27. Re2 {[%clk 0:00:14]}  Bd6 {[%clk 0:00:07]} 28. Rfe1 {[%clk 0:00:11]}  Rxa4 {[%clk 0:00:06]} 29. bxa4 {[%clk 0:00:10]}  Qe7 {[%clk 0:00:06]} 30. a5 {[%clk 0:00:10]}  Qxe6 {[%clk 0:00:06]} 31. a6 {[%clk 0:00:10]}  Ra8 {[%clk 0:00:06]} 32. a7 {[%clk 0:00:10]}  Qd7 {[%clk 0:00:07]} 33. Bxe5 {[%clk 0:00:09]}  Bxe5 {[%clk 0:00:08]} 34. Qc5 {[%clk 0:00:09]}  Kh8 {[%clk 0:00:06]} 35. Rd2 {[%clk 0:00:09]}  d4 {[%clk 0:00:06]} 36. Qxc4 {[%clk 0:00:09]}  h6 {[%clk 0:00:06]} 37. Qc5 {[%clk 0:00:09]}  Bd6 {[%clk 0:00:05]} 38. Qd5 {[%clk 0:00:09]}  Rd8 {[%clk 0:00:04]} 39. Rxd4 {[%clk 0:00:08]}  Qxa7 {[%clk 0:00:04]} 40. h3 {[%clk 0:00:07]}  Bc7 {[%clk 0:00:04]} 41. Qe4 {[%clk 0:00:06]}  Rxd4 {[%clk 0:00:03]} 42. Qe8+ {[%clk 0:00:06]}  Kh7 {[%clk 0:00:04]} 43. Qe3 {[%clk 0:00:07]}  Bb6 {[%clk 0:00:03]} 44. c3 {[%clk 0:00:06]}  Rd1 {[%clk 0:00:02]} 45. Qe4+ {[%clk 0:00:06]}  g6 {[%clk 0:00:02]} 46. Rxd1 {[%clk 0:00:06]}  Bc5 {[%clk 0:00:02]} 47. Qe6 {[%clk 0:00:06]}  f5 {[%clk 0:00:03]} 48. Rd7+ {[%clk 0:00:06]}  Qxd7 {[%clk 0:00:02]} 49. Qxd7+ {[%clk 0:00:07]}  Kg8 {[%clk 0:00:00]} 50. Qc8+ {[%clk 0:00:08]} 1-0


[Site "https://www.chess.com"]

[Event "Titled Tuesday Blitz November 14 Late 2023"]
[White "Vafin, Ayrat"]
[Black "claudiuprunescu"]
[WhiteFideId "4146530"]
[WhiteElo "2526"]
[BlackElo "2203"]
[Result "1-0"]
[Round "3"]
[TimeControl "180+1"]
[Date "2023.11.14"]
[WhiteClock "0:01:20"]
[BlackClock "0:00:40"]
[Board "118"]

1. d4 {[%clk 0:03:00]}  Nf6 {[%clk 0:02:58]} 2. Nf3 {[%clk 0:03:01]}  c6 {[%clk 0:02:57]} 3. Bg5 {[%clk 0:03:00]}  e6 {[%clk 0:02:55]} 4. Nbd2 {[%clk 0:02:50]}  d5 {[%clk 0:02:54]} 5. e4 {[%clk 0:02:49]}  dxe4 {[%clk 0:02:45]} 6. Nxe4 {[%clk 0:02:50]}  Nbd7 {[%clk 0:02:44]} 7. Bd3 {[%clk 0:02:41]}  h6 {[%clk 0:02:43]} 8. Bxf6 {[%clk 0:02:38]}  Nxf6 {[%clk 0:02:42]} 9. O-O {[%clk 0:02:34]}  Be7 {[%clk 0:02:37]} 10. c3 {[%clk 0:02:31]}  O-O {[%clk 0:02:36]} 11. Qe2 {[%clk 0:02:28]}  Nd5 {[%clk 0:02:27]} 12. Bc2 {[%clk 0:02:23]}  Bd6 {[%clk 0:02:21]} 13. Rad1 {[%clk 0:02:20]}  Qe7 {[%clk 0:02:11]} 14. c4 {[%clk 0:02:17]}  Nf4 {[%clk 0:02:11]} 15. Qe3 {[%clk 0:02:13]}  b6 {[%clk 0:02:02]} 16. Ne5 {[%clk 0:01:59]}  Bxe5 {[%clk 0:01:56]} 17. dxe5 {[%clk 0:02:00]}  Ng6 {[%clk 0:01:52]} 18. Nd6 {[%clk 0:01:56]}  Nh4 {[%clk 0:01:29]} 19. Qe4 {[%clk 0:01:38]}  Nf5 {[%clk 0:01:18]} 20. Qxc6 {[%clk 0:01:23]}  Bd7 {[%clk 0:01:09]} 21. Nxf5 {[%clk 0:01:21]}  exf5 {[%clk 0:00:40]} 22. Qxd7 {[%clk 0:01:20]} 1-0


[Site "https://www.chess.com"]

[Event "Titled Tuesday Blitz November 14 Late 2023"]
[White "Sivanandan, Bodhana"]
[Black "Kuegel, Tobias"]
[WhiteFideId "497592"]
[BlackFideId "4636295"]
[WhiteElo "2167"]
[BlackElo "2522"]
[Result "1-0"]
[Round "3"]
[TimeControl "180+1"]
[Date "2023.11.14"]
[WhiteClock "0:01:01"]
[BlackClock "0:00:00"]
[Board "120"]

1. d4 {[%clk 0:03:00]}  Nf6 {[%clk 0:02:59]} 2. Nf3 {[%clk 0:02:59]}  d5 {[%clk 0:02:59]} 3. g3 {[%clk 0:02:59]}  e6 {[%clk 0:02:58]} 4. Bg2 {[%clk 0:02:59]}  Be7 {[%clk 0:02:59]} 5. O-O {[%clk 0:02:59]}  O-O {[%clk 0:02:59]} 6. c3 {[%clk 0:02:59]}  c5 {[%clk 0:02:57]} 7. Bg5 {[%clk 0:02:58]}  Nc6 {[%clk 0:02:43]} 8. e3 {[%clk 0:02:56]}  b6 {[%clk 0:02:37]} 9. Nbd2 {[%clk 0:02:54]}  a5 {[%clk 0:02:25]} 10. Re1 {[%clk 0:02:47]}  cxd4 {[%clk 0:02:17]} 11. exd4 {[%clk 0:02:42]}  b5 {[%clk 0:02:13]} 12. Ne5 {[%clk 0:02:34]}  Nxe5 {[%clk 0:02:03]} 13. dxe5 {[%clk 0:02:33]}  Nd7 {[%clk 0:02:04]} 14. Bxe7 {[%clk 0:02:32]}  Qxe7 {[%clk 0:02:05]} 15. Nf3 {[%clk 0:02:30]}  Ba6 {[%clk 0:01:55]} 16. Nd4 {[%clk 0:02:29]}  Rfc8 {[%clk 0:01:55]} 17. f4 {[%clk 0:02:20]}  b4 {[%clk 0:01:54]} 18. Qf3 {[%clk 0:02:16]}  bxc3 {[%clk 0:01:53]} 19. bxc3 {[%clk 0:02:15]}  Qa3 {[%clk 0:01:29]} 20. f5 {[%clk 0:02:04]}  Rxc3 {[%clk 0:01:20]} 21. Qf4 {[%clk 0:02:01]}  Nc5 {[%clk 0:00:56]} 22. fxe6 {[%clk 0:01:56]}  Nxe6 {[%clk 0:00:51]} 23. Nxe6 {[%clk 0:01:51]}  fxe6 {[%clk 0:00:52]} 24. Bh3 {[%clk 0:01:49]}  Rf8 {[%clk 0:00:22]} 25. Bxe6+ {[%clk 0:01:46]}  Kh8 {[%clk 0:00:22]} 26. Qd4 {[%clk 0:01:39]}  Rd3 {[%clk 0:00:17]} 27. Qb6 {[%clk 0:01:38]}  Rxg3+ {[%clk 0:00:12]} 28. hxg3 {[%clk 0:01:33]}  Qxg3+ {[%clk 0:00:12]} 29. Kh1 {[%clk 0:01:34]}  Bd3 {[%clk 0:00:10]} 30. Re3 {[%clk 0:01:16]}  Be4+ {[%clk 0:00:06]} 31. Rxe4 {[%clk 0:01:15]}  dxe4 {[%clk 0:00:07]} 32. Qg1 {[%clk 0:01:10]}  Qxe5 {[%clk 0:00:06]} 33. Bh3 {[%clk 0:01:08]}  e3 {[%clk 0:00:05]} 34. Re1 {[%clk 0:01:07]}  e2 {[%clk 0:00:04]} 35. Bg4 {[%clk 0:01:05]}  Qe4+ {[%clk 0:00:03]} 36. Kh2 {[%clk 0:01:02]}  Rf6 {[%clk 0:00:02]} 37. Rxe2 {[%clk 0:01:01]}  Rh6+ {[%clk 0:00:03]} 38. Kg3 {[%clk 0:01:01]}  Qd3+ {[%clk 0:00:01]} 39. Re3 {[%clk 0:01:01]}  Qd6+ {[%clk 0:00:01]} 40. Kf3 {[%clk 0:01:01]}  Rf6+ {[%clk 0:00:00]} 41. Ke2 {[%clk 0:01:01]} 1-0


[Site "https://www.chess.com"]

[Event "Titled Tuesday Blitz November 14 Late 2023"]
[White "Levine, David"]
[Black "Rizzo, Tobias"]
[WhiteFideId "2011611"]
[BlackFideId "30942691"]
[WhiteElo "2136"]
[BlackElo "2520"]
[Result "0-1"]
[Round "3"]
[TimeControl "180+1"]
[Date "2023.11.14"]
[WhiteClock "0:00:00"]
[BlackClock "0:00:42"]
[Board "122"]

1. d4 {[%clk 0:03:00]}  Nf6 {[%clk 0:03:00]} 2. c4 {[%clk 0:02:59]}  g6 {[%clk 0:02:59]} 3. g3 {[%clk 0:02:58]}  Bg7 {[%clk 0:02:59]} 4. Bg2 {[%clk 0:02:59]}  c6 {[%clk 0:03:00]} 5. Nc3 {[%clk 0:02:58]}  d5 {[%clk 0:03:00]} 6. cxd5 {[%clk 0:02:56]}  cxd5 {[%clk 0:03:01]} 7. Nf3 {[%clk 0:02:57]}  O-O {[%clk 0:03:02]} 8. Ne5 {[%clk 0:02:56]}  Nc6 {[%clk 0:02:55]} 9. Bf4 {[%clk 0:02:53]}  Qb6 {[%clk 0:02:53]} 10. Nxc6 {[%clk 0:02:48]}  bxc6 {[%clk 0:02:51]} 11. Na4 {[%clk 0:02:34]}  Qb4+ {[%clk 0:02:47]} 12. Kf1 {[%clk 0:02:17]}  Ba6 {[%clk 0:02:44]} 13. Nc5 {[%clk 0:02:09]}  Bc8 {[%clk 0:02:33]} 14. Qd2 {[%clk 0:01:57]}  Qxd2 {[%clk 0:02:24]} 15. Bxd2 {[%clk 0:01:57]}  Nd7 {[%clk 0:02:24]} 16. Nxd7 {[%clk 0:01:52]}  Bxd7 {[%clk 0:02:25]} 17. Bc3 {[%clk 0:01:40]}  Rfe8 {[%clk 0:02:18]} 18. e4 {[%clk 0:01:24]}  e5 {[%clk 0:01:56]} 19. dxe5 {[%clk 0:01:15]}  dxe4 {[%clk 0:01:54]} 20. Re1 {[%clk 0:01:02]}  Bxe5 {[%clk 0:01:53]} 21. Bxe5 {[%clk 0:01:01]}  Rxe5 {[%clk 0:01:54]} 22. Rxe4 {[%clk 0:00:52]}  Rxe4 {[%clk 0:01:35]} 23. Bxe4 {[%clk 0:00:52]}  Re8 {[%clk 0:01:36]} 24. f3 {[%clk 0:00:36]}  f5 {[%clk 0:01:31]} 25. Bd3 {[%clk 0:00:30]}  Re3 {[%clk 0:01:31]} 26. Bc4+ {[%clk 0:00:29]}  Be6 {[%clk 0:01:19]} 27. Bxe6+ {[%clk 0:00:28]}  Rxe6 {[%clk 0:01:19]} 28. Kf2 {[%clk 0:00:28]}  Kf7 {[%clk 0:01:18]} 29. Rc1 {[%clk 0:00:27]}  Rd6 {[%clk 0:01:13]} 30. Ke3 {[%clk 0:00:23]}  Ke6 {[%clk 0:01:13]} 31. Rc3 {[%clk 0:00:19]}  g5 {[%clk 0:00:48]} 32. Rc5 {[%clk 0:00:18]}  h5 {[%clk 0:00:44]} 33. f4 {[%clk 0:00:02]}  g4 {[%clk 0:00:42]} 34. Ra5 {[%clk 0:00:00]}  Rd7 {[%clk 0:00:42]} 0-1


[Site "https://www.chess.com"]

[Event "Titled Tuesday Blitz November 14 Late 2023"]
[White "Lutz, Igor Oscar"]
[Black "JackRodgers"]
[WhiteFideId "2110806"]
[WhiteElo "1835"]
[BlackElo "2515"]
[Result "0-1"]
[Round "3"]
[TimeControl "180+1"]
[Date "2023.11.14"]
[WhiteClock "0:00:37"]
[BlackClock "0:01:59"]
[Board "125"]

1. d4 {[%clk 0:03:00]}  Nf6 {[%clk 0:02:59]} 2. c4 {[%clk 0:03:00]}  c5 {[%clk 0:02:59]} 3. d5 {[%clk 0:03:00]}  e5 {[%clk 0:02:59]} 4. dxe6 {[%clk 0:02:58]}  fxe6 {[%clk 0:02:59]} 5. Nc3 {[%clk 0:02:57]}  Nc6 {[%clk 0:02:59]} 6. e4 {[%clk 0:02:57]}  Be7 {[%clk 0:02:59]} 7. Nf3 {[%clk 0:02:57]}  d6 {[%clk 0:02:59]} 8. Be2 {[%clk 0:02:57]}  O-O {[%clk 0:03:00]} 9. Bf4 {[%clk 0:02:55]}  e5 {[%clk 0:03:00]} 10. Bg5 {[%clk 0:02:52]}  Nd4 {[%clk 0:03:00]} 11. O-O {[%clk 0:02:47]}  Be6 {[%clk 0:02:53]} 12. Bxf6 {[%clk 0:02:46]}  Bxf6 {[%clk 0:02:53]} 13. Nd5 {[%clk 0:02:46]}  Bxd5 {[%clk 0:02:50]} 14. exd5 {[%clk 0:02:41]}  e4 {[%clk 0:02:45]} 15. Nd2 {[%clk 0:02:28]}  Qe7 {[%clk 0:02:39]} 16. Re1 {[%clk 0:02:04]}  e3 {[%clk 0:02:37]} 17. Nf3 {[%clk 0:01:46]}  exf2+ {[%clk 0:02:35]} 18. Kxf2 {[%clk 0:01:47]}  Rae8 {[%clk 0:02:21]} 19. Bd3 {[%clk 0:01:36]}  Bh4+ {[%clk 0:02:03]} 20. g3 {[%clk 0:00:58]}  Qxe1+ {[%clk 0:02:02]} 21. Qxe1 {[%clk 0:00:56]}  Rxe1 {[%clk 0:02:02]} 22. Rxe1 {[%clk 0:00:41]}  Rxf3+ {[%clk 0:02:01]} 23. Kg2 {[%clk 0:00:41]}  Rxd3 {[%clk 0:02:00]} 24. gxh4 {[%clk 0:00:37]}  Rd2+ {[%clk 0:01:59]} 0-1


[Site "https://www.chess.com"]

[Event "Titled Tuesday Blitz November 14 Late 2023"]
[White "Djordjevic, Dejan N"]
[Black "Makarian, Rudik"]
[WhiteFideId "913316"]
[BlackFideId "44105681"]
[WhiteElo "2039"]
[BlackElo "2954"]
[Result "0-1"]
[Round "3"]
[TimeControl "180+1"]
[Date "2023.11.14"]
[WhiteClock "0:00:12"]
[BlackClock "0:01:32"]
[Board "126"]

1. e4 {[%clk 0:03:00]}  c5 {[%clk 0:03:00]} 2. Nc3 {[%clk 0:03:00]}  d6 {[%clk 0:03:00]} 3. g3 {[%clk 0:03:00]}  Nc6 {[%clk 0:03:01]} 4. Bg2 {[%clk 0:03:01]}  g6 {[%clk 0:03:01]} 5. Nge2 {[%clk 0:03:02]}  Bg7 {[%clk 0:03:02]} 6. O-O {[%clk 0:03:02]}  e5 {[%clk 0:03:02]} 7. h3 {[%clk 0:03:03]}  Nge7 {[%clk 0:03:03]} 8. d3 {[%clk 0:03:03]}  O-O {[%clk 0:03:03]} 9. Be3 {[%clk 0:03:02]}  Be6 {[%clk 0:03:02]} 10. Qd2 {[%clk 0:03:02]}  Qd7 {[%clk 0:03:01]} 11. Kh2 {[%clk 0:03:01]}  f5 {[%clk 0:03:01]} 12. f4 {[%clk 0:03:01]}  Rae8 {[%clk 0:03:01]} 13. Rae1 {[%clk 0:03:00]}  Nd4 {[%clk 0:03:01]} 14. b3 {[%clk 0:02:55]}  b5 {[%clk 0:03:01]} 15. a4 {[%clk 0:02:52]}  b4 {[%clk 0:03:00]} 16. Nd1 {[%clk 0:02:52]}  Nxe2 {[%clk 0:02:51]} 17. Rxe2 {[%clk 0:02:48]}  Kh8 {[%clk 0:02:50]} 18. fxe5 {[%clk 0:02:40]}  Bxe5 {[%clk 0:02:50]} 19. Bf4 {[%clk 0:02:40]}  Nc6 {[%clk 0:02:49]} 20. Bxe5+ {[%clk 0:02:38]}  Nxe5 {[%clk 0:02:50]} 21. d4 {[%clk 0:02:35]}  cxd4 {[%clk 0:02:43]} 22. Qxd4 {[%clk 0:02:35]}  a5 {[%clk 0:02:42]} 23. exf5 {[%clk 0:02:26]}  Bxf5 {[%clk 0:02:39]} 24. Ne3 {[%clk 0:02:23]}  Be6 {[%clk 0:02:30]} 25. Rxf8+ {[%clk 0:02:16]}  Rxf8 {[%clk 0:02:30]} 26. Nd5 {[%clk 0:02:17]}  Bxd5 {[%clk 0:02:28]} 27. Bxd5 {[%clk 0:02:16]}  Qg7 {[%clk 0:02:26]} 28. Qe3 {[%clk 0:02:06]}  Qf6 {[%clk 0:02:24]} 29. Bg2 {[%clk 0:02:04]}  Kg7 {[%clk 0:02:16]} 30. Qb6 {[%clk 0:01:57]}  h5 {[%clk 0:02:15]} 31. Qxa5 {[%clk 0:01:53]}  h4 {[%clk 0:02:14]} 32. Qxb4 {[%clk 0:01:49]}  hxg3+ {[%clk 0:02:14]} 33. Kxg3 {[%clk 0:01:48]}  Qg5+ {[%clk 0:02:14]} 34. Kh2 {[%clk 0:01:48]}  Qh5 {[%clk 0:01:49]} 35. Qe4 {[%clk 0:01:25]}  Rf5 {[%clk 0:01:48]} 36. a5 {[%clk 0:01:20]}  d5 {[%clk 0:01:47]} 37. Qxf5 {[%clk 0:00:35]}  Qxf5 {[%clk 0:01:44]} 38. a6 {[%clk 0:00:32]}  Qf4+ {[%clk 0:01:37]} 39. Kg1 {[%clk 0:00:24]}  Qd4+ {[%clk 0:01:35]} 40. Kf1 {[%clk 0:00:20]}  Kf6 {[%clk 0:01:34]} 41. Rf2+ {[%clk 0:00:16]}  Ke6 {[%clk 0:01:33]} 42. Re2 {[%clk 0:00:16]}  Qa1+ {[%clk 0:01:33]} 43. Kf2 {[%clk 0:00:16]}  Qxa6 {[%clk 0:01:33]} 44. c4 {[%clk 0:00:13]}  dxc4 {[%clk 0:01:32]} 45. bxc4 {[%clk 0:00:12]}  Qxc4 {[%clk 0:01:32]} 0-1


[Site "https://www.chess.com"]

[Event "Titled Tuesday Blitz November 14 Late 2023"]
[White "Djokic, Mihailo"]
[Black "Figorito, Nick"]
[WhiteFideId "976440"]
[BlackFideId "30923689"]
[WhiteElo "2667"]
[BlackElo "2404"]
[Result "1-0"]
[Round "3"]
[TimeControl "180+1"]
[Date "2023.11.14"]
[WhiteClock "0:01:16"]
[BlackClock "0:00:18"]
[Board "127"]

1. e4 {[%clk 0:03:00]}  e6 {[%clk 0:03:00]} 2. d4 {[%clk 0:02:59]}  d5 {[%clk 0:03:00]} 3. Nc3 {[%clk 0:02:54]}  Bb4 {[%clk 0:03:00]} 4. e5 {[%clk 0:02:53]}  c5 {[%clk 0:03:00]} 5. a3 {[%clk 0:02:53]}  Bxc3+ {[%clk 0:03:00]} 6. bxc3 {[%clk 0:02:54]}  Ne7 {[%clk 0:03:00]} 7. h4 {[%clk 0:02:55]}  Qa5 {[%clk 0:03:00]} 8. Bd2 {[%clk 0:02:54]}  Qa4 {[%clk 0:03:00]} 9. h5 {[%clk 0:02:52]}  h6 {[%clk 0:03:00]} 10. Nf3 {[%clk 0:02:52]}  b6 {[%clk 0:02:59]} 11. Rh4 {[%clk 0:02:51]}  Qd7 {[%clk 0:02:44]} 12. Rg4 {[%clk 0:02:38]}  Nf5 {[%clk 0:02:35]} 13. Bd3 {[%clk 0:02:38]}  Kf8 {[%clk 0:02:20]} 14. Nh4 {[%clk 0:02:36]}  Nc6 {[%clk 0:01:53]} 15. Nxf5 {[%clk 0:02:32]}  exf5 {[%clk 0:01:54]} 16. Rf4 {[%clk 0:02:33]}  Ne7 {[%clk 0:01:48]} 17. Qf3 {[%clk 0:02:21]}  g6 {[%clk 0:01:42]} 18. g4 {[%clk 0:02:14]}  g5 {[%clk 0:01:28]} 19. Rxf5 {[%clk 0:02:11]}  Nxf5 {[%clk 0:01:27]} 20. Bxf5 {[%clk 0:02:04]}  Qe7 {[%clk 0:01:27]} 21. Qxd5 {[%clk 0:02:02]}  Kg7 {[%clk 0:01:13]} 22. Qxa8 {[%clk 0:01:55]}  Bxf5 {[%clk 0:01:13]} 23. Qf3 {[%clk 0:01:55]}  Bxc2 {[%clk 0:01:11]} 24. a4 {[%clk 0:01:49]}  c4 {[%clk 0:01:04]} 25. Be3 {[%clk 0:01:43]}  Bd3 {[%clk 0:01:03]} 26. Kd2 {[%clk 0:01:40]}  Rb8 {[%clk 0:00:53]} 27. d5 {[%clk 0:01:33]}  Rd8 {[%clk 0:00:47]} 28. d6 {[%clk 0:01:33]}  Qe6 {[%clk 0:00:44]} 29. Bd4 {[%clk 0:01:32]}  Kh7 {[%clk 0:00:42]} 30. a5 {[%clk 0:01:30]}  b5 {[%clk 0:00:40]} 31. a6 {[%clk 0:01:30]}  Rd7 {[%clk 0:00:40]} 32. Ra5 {[%clk 0:01:30]}  f6 {[%clk 0:00:34]} 33. Qxf6 {[%clk 0:01:28]}  Qxf6 {[%clk 0:00:34]} 34. exf6 {[%clk 0:01:28]}  Rxd6 {[%clk 0:00:35]} 35. f7 {[%clk 0:01:23]}  Rd8 {[%clk 0:00:28]} 36. Rxb5 {[%clk 0:01:21]}  Be4 {[%clk 0:00:27]} 37. Rb7 {[%clk 0:01:16]}  Bxb7 {[%clk 0:00:24]} 38. axb7 {[%clk 0:01:17]}  a5 {[%clk 0:00:23]} 39. Kc2 {[%clk 0:01:15]}  a4 {[%clk 0:00:18]} 40. Bc5 {[%clk 0:01:15]}  Kg7 {[%clk 0:00:17]} 41. f8=Q+ {[%clk 0:01:15]}  Rxf8 {[%clk 0:00:17]} 42. Bxf8+ {[%clk 0:01:15]}  Kxf8 {[%clk 0:00:18]} 43. b8=Q+ {[%clk 0:01:16]} 1-0


[Site "https://www.chess.com"]

[Event "Titled Tuesday Blitz November 14 Late 2023"]
[White "Degtiarev, Evgeny"]
[Black "Gubajdullin, Alexei"]
[WhiteFideId "4149610"]
[BlackFideId "4141202"]
[WhiteElo "2378"]
[BlackElo "2618"]
[Result "0-1"]
[Round "3"]
[TimeControl "180+1"]
[Date "2023.11.14"]
[WhiteClock "0:00:17"]
[BlackClock "0:01:53"]
[Board "130"]

1. d4 {[%clk 0:02:59]}  Nf6 {[%clk 0:02:59]} 2. c4 {[%clk 0:02:59]}  g6 {[%clk 0:02:59]} 3. Nc3 {[%clk 0:02:59]}  Bg7 {[%clk 0:02:59]} 4. e4 {[%clk 0:02:59]}  d6 {[%clk 0:03:00]} 5. f3 {[%clk 0:02:57]}  O-O {[%clk 0:03:00]} 6. Nge2 {[%clk 0:02:58]}  Nc6 {[%clk 0:03:00]} 7. Be3 {[%clk 0:02:55]}  a6 {[%clk 0:03:00]} 8. Rc1 {[%clk 0:02:49]}  Rb8 {[%clk 0:03:00]} 9. Nd5 {[%clk 0:02:47]}  e6 {[%clk 0:03:00]} 10. Nxf6+ {[%clk 0:02:44]}  Bxf6 {[%clk 0:02:59]} 11. Qd2 {[%clk 0:02:30]}  Bd7 {[%clk 0:02:59]} 12. d5 {[%clk 0:02:24]}  Ne5 {[%clk 0:02:57]} 13. Ng3 {[%clk 0:02:18]}  b5 {[%clk 0:02:56]} 14. c5 {[%clk 0:02:13]}  Nc4 {[%clk 0:02:54]} 15. Bxc4 {[%clk 0:01:55]}  bxc4 {[%clk 0:02:54]} 16. Bd4 {[%clk 0:01:56]}  dxc5 {[%clk 0:02:48]} 17. Bc3 {[%clk 0:01:27]}  exd5 {[%clk 0:02:47]} 18. Qxd5 {[%clk 0:01:17]}  Bxc3+ {[%clk 0:02:21]} 19. bxc3 {[%clk 0:01:12]}  Rb2 {[%clk 0:02:22]} 20. O-O {[%clk 0:01:12]}  Rxa2 {[%clk 0:02:19]} 21. Qxc4 {[%clk 0:01:08]}  Be6 {[%clk 0:02:18]} 22. Qxc5 {[%clk 0:01:08]}  Qd2 {[%clk 0:02:14]} 23. Qf2 {[%clk 0:01:07]}  Rb8 {[%clk 0:02:13]} 24. Qxd2 {[%clk 0:01:03]}  Rxd2 {[%clk 0:02:10]} 25. Rf2 {[%clk 0:01:02]}  Rxf2 {[%clk 0:02:07]} 26. Kxf2 {[%clk 0:01:03]}  a5 {[%clk 0:02:07]} 27. Ra1 {[%clk 0:00:59]}  Ra8 {[%clk 0:02:05]} 28. Ne2 {[%clk 0:00:42]}  a4 {[%clk 0:02:05]} 29. Ra3 {[%clk 0:00:42]}  Bc4 {[%clk 0:02:03]} 30. Nd4 {[%clk 0:00:38]}  c5 {[%clk 0:02:03]} 31. Nc6 {[%clk 0:00:38]}  f6 {[%clk 0:01:59]} 32. Ke3 {[%clk 0:00:34]}  Kf7 {[%clk 0:01:58]} 33. e5 {[%clk 0:00:18]}  Bb5 {[%clk 0:01:57]} 34. Nd4 {[%clk 0:00:18]}  cxd4+ {[%clk 0:01:57]} 35. cxd4 {[%clk 0:00:19]}  fxe5 {[%clk 0:01:57]} 36. dxe5 {[%clk 0:00:20]}  Bc4 {[%clk 0:01:54]} 37. f4 {[%clk 0:00:17]}  Bb3 {[%clk 0:01:54]} 38. g4 {[%clk 0:00:17]}  Ra5 {[%clk 0:01:54]} 39. f5 {[%clk 0:00:17]}  Rxe5+ {[%clk 0:01:53]} 0-1


[Site "https://www.chess.com"]